fUSD/lending_fUSD_20240829
["ID","MTS","AMOUNT","RATE_DAILY","PERIOD"]
[336599659,1724969436331,-201.696811,0.00014504,2]
[336599660,1724969436343,-237.069901,0.00014504,2]
[336599661,1724969436352,-201.696811,0.00014504,2]
[336599662,1724969436362,-151.0,0.00014504,2]
[336599663,1724969436372,-1202.896051,0.00014504,2]
[336599664,1724969436383,-1202.896051,0.00014504,2]
[336599665,1724969436392,-197.412008,0.00014504,2]
[336599666,1724969436402,-197.412008,0.00014504,2]
[336599667,1724969436412,-151.0,0.00014504,2]
[336599668,1724969436422,-158.236402,0.00014504,2]
[336599669,1724969436431,-151.0,0.00014504,2]
[336599670,1724969436441,-151.0,0.00014504,2]
[336599671,1724969436451,-151.0,0.00014504,2]
[336599672,1724969436460,-151.0,0.00014504,2]
[336599673,1724969436469,-151.0,0.00014504,2]
[336599674,1724969436479,-314.230487,0.00014504,2]
[336599675,1724969436488,-314.230487,0.00014504,2]
[336599676,1724969436499,-151.0,0.00014504,2]
[336599677,1724969436508,-6679.8,0.00014504,2]
[336599678,1724969436518,-1800.32606743,0.00014504,2]
[336599679,1724969436536,-2224.5017043,0.00010993,2]
[336599680,1724969436549,-4480.06878099,0.00014504,2]
[336599681,1724969436560,-403.37221614,0.00014504,2]
[336599682,1724969436571,-440.63757654,0.00014504,2]
[336599700,1724969438371,-310.30999995,0.00013797,2]
[336599702,1724969438383,-55.24499169,0.00013797,2]
[336599703,1724969438394,-11736.22065516,0.00013996,2]
[336599704,1724969438404,-210.303605,0.00014,2]
[336599705,1724969438414,-210.303605,0.00014504,2]
[336599706,1724969438423,-22875.5853589,0.00014504,2]
[336599707,1724969438433,-3534.71,0.00014504,2]
[336599708,1724969438442,-28221.39,0.00014504,2]
[336599709,1724969438452,-14303.35,0.00014504,2]
[336599710,1724969438461,-300.0,0.00014521,2]
[336599711,1724969438471,-1000.0,0.00014521,2]
[336599712,1724969438480,-823.0,0.0001459,2]
[336599713,1724969438489,-409.88,0.00014595,2]
[336599714,1724969438499,-188.632966,0.00014806,2]
[336599715,1724969438508,-400.0,0.00014807,2]
[336599716,1724969438518,-672.09,0.00014902,2]
[336599717,1724969438527,-9025.02246408,0.00015,2]
[336599718,1724969438537,-21876.34270607,0.00015,2]
[336599719,1724969438548,-496.0,0.00015,2]
[336599720,1724969438558,-850.01,0.0001518,2]
[336599721,1724969438567,-151.0,0.000153,2]
[336599722,1724969438576,-151.0,0.000153,2]
[336599723,1724969438585,-151.0,0.000153,2]
[336599724,1724969438594,-151.0,0.000153,2]
[336599725,1724969438603,-151.0,0.000153,2]
[336599726,1724969438612,-151.0,0.000153,2]
[336599727,1724969438622,-233.260893,0.000153,2]
[336599728,1724969438631,-233.260893,0.000153,2]
[336599729,1724969438641,-334.24947,0.000153,2]
[336599730,1724969438650,-334.24947,0.000153,2]
[336599731,1724969438659,-205.201836,0.000153,2]
[336599732,1724969438669,-151.0,0.000153,2]
[336599733,1724969438678,-205.201836,0.000153,2]
[336599734,1724969438687,-151.0,0.000153,2]
[336599735,1724969438697,-151.0,0.000153,2]
[336599736,1724969438706,-267.003247,0.000153,2]
[336599737,1724969438715,-151.0,0.000153,2]
[336599738,1724969438724,-228.131326,0.000153,2]
[336599739,1724969438734,-267.003247,0.000153,2]
[336599741,1724969438743,-151.0,0.000153,2]
[336599743,1724969438752,-151.0,0.000153,2]
[336599745,1724969438761,-151.0,0.000153,2]
[336599747,1724969438770,-151.0,0.000153,2]
[336599749,1724969438779,-365.55499164,0.00015307,2]
[336599751,1724969438788,-151.0,0.0001531,2]
[336599752,1724969438800,-151.0,0.0001531,2]
[336599754,1724969438809,-151.0,0.0001531,2]
[336599756,1724969438819,-151.0,0.0001531,2]
[336599758,1724969438828,-151.0,0.0001531,2]
[336599760,1724969438837,-151.0,0.0001531,2]
[336599761,1724969438847,-155.130348,0.0001531,2]
[336599762,1724969438857,-238.776132,0.0001531,2]
[336599763,1724969438866,-332.629475,0.0001531,2]
[336599764,1724969438876,-154.330457,0.0001531,2]
[336599765,1724969438885,-154.330457,0.0001531,2]
[336599766,1724969438897,-151.0,0.0001531,2]
[336599767,1724969438906,-163.050445,0.0001531,2]
[336599769,1724969438915,-233.292681,0.0001531,2]
[336599771,1724969438925,-233.292681,0.0001531,2]
[336599773,1724969438934,-267.003247,0.0001531,2]
[336599776,1724969438943,-151.0,0.0001531,2]
[336599778,1724969438953,-267.003247,0.0001531,2]
[336599780,1724969438963,-151.0,0.0001531,2]
[336599782,1724969438972,-151.0,0.0001531,2]
[336599784,1724969438981,-151.0,0.0001531,2]
[336599786,1724969438990,-151.0,0.0001531,2]
[336599788,1724969438999,-151.0,0.0001531,2]
[336599790,1724969439009,-458.726026,0.0001531,2]
[336599792,1724969439018,-458.726026,0.0001531,2]
[336599794,1724969439027,-151.0,0.0001531,2]
[336599796,1724969439037,-151.0,0.0001531,2]
[336599798,1724969439049,-202.976377,0.0001531,2]
[336599800,1724969439058,-151.0,0.0001531,2]
[336599801,1724969439068,-202.976377,0.0001531,2]
[336599803,1724969439077,-151.0,0.0001531,2]
[336599806,1724969439087,-266.224997,0.0001531,2]
[336599808,1724969439096,-266.224997,0.0001531,2]
[336599809,1724969439105,-204.488722,0.0001531,2]
[336599811,1724969439115,-204.488722,0.0001531,2]
[336599813,1724969439124,-151.0,0.0001531,2]
[336599815,1724969439134,-151.0,0.0001531,2]
[336599817,1724969439143,-193.543222,0.0001531,2]
[336599819,1724969439152,-193.543222,0.0001531,2]
[336599821,1724969439162,-5569.956154,0.0001531,2]
[336599823,1724969439171,-5569.956154,0.0001531,2]
[336599825,1724969439180,-237.069901,0.0001531,2]
[336599827,1724969439190,-201.696811,0.0001531,2]
[336599829,1724969439199,-237.069901,0.0001531,2]
[336599831,1724969439209,-201.696811,0.0001531,2]
[336599833,1724969439218,-159.000742,0.0001531,2]
[336599835,1724969439228,-1202.896051,0.0001531,2]
[336599837,1724969439238,-1202.896051,0.0001531,2]
[336599839,1724969439248,-197.412008,0.0001531,2]
[336599842,1724969439259,-197.412008,0.0001531,2]
[336599844,1724969439268,-151.0,0.0001531,2]
[336599846,1724969439277,-151.0,0.0001531,2]
[336599848,1724969439288,-151.0,0.0001531,2]
[336599850,1724969439306,-314.230487,0.0001531,2]
[336599852,1724969439315,-314.230487,0.0001531,2]
[336599854,1724969439324,-210.303605,0.0001531,2]
[336599856,1724969439335,-1500.0,0.00015419,2]
[336599858,1724969439345,-151.0,0.00015544,2]
[336599860,1724969439354,-151.0,0.00015544,2]
[336599861,1724969439363,-151.0,0.00015544,2]
[336599863,1724969439373,-334.24947,0.00015544,2]
[336599865,1724969439382,-334.24947,0.00015544,2]
[336599867,1724969439391,-205.201836,0.00015544,2]
[336599869,1724969439400,-205.201836,0.00015544,2]
[336599871,1724969439409,-4815.06414119,0.00015545,2]
[336599873,1724969439421,-1664.99007179,0.00015545,2]
[336599876,1724969439433,-941.74642369,0.00015545,2]
[336599878,1724969439445,-2578.19936333,0.00015545,2]
[336599880,1724969439455,-188.632966,0.00015546,2]
[336599882,1724969439465,-370.69,0.00015718,2]
[336599884,1724969439475,-167.0,0.00015831,2]
[336599885,1724969439484,-151.0,0.00015879,2]
[336599887,1724969439494,-151.0,0.00015879,2]
[336599889,1724969439503,-233.260893,0.00015879,2]
[336599891,1724969439512,-233.260893,0.00015879,2]
[336599893,1724969439522,-151.0,0.00015879,2]
[336599895,1724969439532,-151.0,0.00015879,2]
[336599897,1724969439541,-151.0,0.00015889,2]
[336599899,1724969439555,-151.0,0.00015889,2]
[336599901,1724969439564,-151.0,0.00015889,2]
[336599903,1724969439574,-153.815165,0.00015889,2]
[336599905,1724969439583,-151.0,0.00015889,2]
[336599907,1724969439593,-151.0,0.00015889,2]
[336599909,1724969439602,-151.0,0.00015889,2]
[336599911,1724969439611,-151.0,0.00015889,2]
[336599913,1724969439620,-151.0,0.00015889,2]
[336599915,1724969439629,-151.0,0.00015889,2]
[336599917,1724969439638,-285.821735,0.00015889,2]
[336599918,1724969439648,-151.0,0.00015889,2]
[336599920,1724969439658,-155.325137,0.00015889,2]
[336599922,1724969439668,-155.325137,0.00015889,2]
[336599924,1724969439677,-151.0,0.00015889,2]
[336599926,1724969439687,-151.0,0.00015889,2]
[336599928,1724969439697,-151.0,0.00015889,2]
[336599930,1724969439707,-151.0,0.00015889,2]
[336599932,1724969439718,-151.0,0.00015889,2]
[336599934,1724969439728,-151.0,0.00015889,2]
[336599936,1724969439738,-332.629475,0.00015889,2]
[336599938,1724969439747,-154.330457,0.00015889,2]
[336599940,1724969439757,-154.330457,0.00015889,2]
[336599942,1724969439766,-151.0,0.00015889,2]
[336599944,1724969439776,-233.292681,0.00015889,2]
[336599946,1724969439786,-233.292681,0.00015889,2]
[336599948,1724969439796,-461.47697,0.0001589,2]
[336599950,1724969439805,-409.88,0.00015922,2]
[336599952,1724969439815,-350.0,0.00016,2]
[336599954,1724969439824,-1152.0,0.00016033,2]
[336599955,1724969439833,-151.0,0.00016106,2]
[336599957,1724969439842,-267.003247,0.00016106,2]
[336599959,1724969439851,-267.003247,0.00016106,2]
[336599961,1724969439860,-154.244936,0.00016106,2]
[336599963,1724969439870,-151.286246,0.00016116,2]
[336599965,1724969439880,-151.0,0.00016116,2]
[336599967,1724969439889,-285.821735,0.00016116,2]
[336599969,1724969439899,-151.0,0.00016116,2]
[336599971,1724969439909,-151.0,0.00016116,2]
[336599973,1724969439919,-151.0,0.00016116,2]
[336599975,1724969439928,-151.0,0.00016116,2]
[336599977,1724969439938,-151.0,0.00016116,2]
[336599979,1724969439948,-151.0,0.00016116,2]
[336599981,1724969439957,-334.24947,0.00016116,2]
[336599983,1724969439967,-334.24947,0.00016116,2]
[336599985,1724969439977,-205.201836,0.00016116,2]
[336599987,1724969439986,-205.201836,0.00016116,2]
[336599989,1724969439996,-400.0,0.00016153,2]
[336599991,1724969440005,-1000.0,0.00016178,2]
[336599993,1724969440014,-672.09,0.00016257,2]
[336599995,1724969440023,-1099.37,0.00016438,2]
[336599997,1724969440032,-1000.0,0.00016524,2]
[336599999,1724969440041,-151.0,0.00016568,2]
[336600001,1724969440053,-151.0,0.00016568,2]
[336600003,1724969440063,-151.0,0.00016568,2]
[336600005,1724969440072,-151.0,0.00016568,2]
[336600007,1724969440081,-202.976377,0.00016568,2]
[336600010,1724969440091,-151.0,0.00016568,2]
[336600012,1724969440100,-202.976377,0.00016568,2]
[336600013,1724969440109,-151.0,0.00016568,2]
[336600015,1724969440119,-266.224997,0.00016568,2]
[336600017,1724969440128,-266.224997,0.00016568,2]
[336600020,1724969440137,-204.488722,0.00016568,2]
[336600023,1724969440147,-204.488722,0.00016568,2]
[336600025,1724969440156,-176.455801,0.00016568,2]
[336600027,1724969440166,-151.0,0.00016568,2]
[336600029,1724969440175,-193.543222,0.00016568,2]
[336600031,1724969440184,-193.543222,0.00016568,2]
[336600033,1724969440195,-5569.956154,0.00016568,2]
[336600035,1724969440204,-5569.956154,0.00016568,2]
[336600037,1724969440214,-237.069901,0.00016568,2]
[336600040,1724969440224,-201.696811,0.00016568,2]
[336600043,1724969440234,-237.069901,0.00016568,2]
[336600046,1724969440244,-201.696811,0.00016568,2]
[336600047,1724969440253,-1202.896051,0.00016568,2]
[336600049,1724969440263,-1202.896051,0.00016568,2]
[336600051,1724969440272,-197.412008,0.00016568,2]
[336600053,1724969440281,-197.412008,0.00016568,2]
[336600054,1724969440293,-151.0,0.00016568,2]
[336600056,1724969440307,-151.0,0.00016568,2]
[336600058,1724969440319,-151.0,0.00016568,2]
[336600060,1724969440328,-151.0,0.00016568,2]
[336600062,1724969440337,-314.230487,0.00016568,2]
[336600064,1724969440346,-151.0,0.00016568,2]
[336600065,1724969440357,-314.230487,0.00016568,2]
[336600067,1724969440366,-151.0,0.00016568,2]
[336600069,1724969440375,-210.303605,0.00016568,2]
[336600071,1724969440385,-1259.0,0.00016568,2]
[336600072,1724969440395,-1545.0,0.00016568,2]
[336600074,1724969440404,-640.293,0.00016568,2]
[336600076,1724969440414,-810.0,0.00016568,2]
[336600078,1724969440424,-930.0,0.00016568,2]
[336600080,1724969440434,-150.0,0.00016568,2]
[336600081,1724969440444,-552.0,0.00016568,2]
[336600083,1724969440454,-1897.0,0.00016568,2]
[336600085,1724969440464,-873.438,0.00016568,2]
[336600087,1724969440473,-3322.0,0.00016568,2]
[336600088,1724969440482,-764.0,0.00016568,2]
[336600090,1724969440492,-248.0,0.00016568,2]
[336600092,1724969440503,-543.116,0.00016572,2]
[336600094,1724969440513,-3124.862,0.00016572,2]
[336600096,1724969440524,-1902.72882249,0.00016572,2]
[336600173,1724969441658,-1826.27117751,0.00016572,2]
[336600175,1724969441668,-289.0,0.00016572,2]
[336600177,1724969441678,-1206.0,0.00016572,2]
[336600179,1724969441687,-225.55070804,0.00016572,2]
[336600181,1724969441699,-509.3973985,0.00016572,2]
[336600183,1724969441710,-14.01389346,0.00016572,2]
[336600185,1724969441719,-156.41721627,0.00016625,2]
[336600186,1724969441728,-151.0,0.00016824,2]
[336600188,1724969441738,-151.0,0.00016824,2]
[336600190,1724969441747,-151.0,0.00016824,2]
[336600192,1724969441756,-151.0,0.00016922,2]
[336600194,1724969441765,-151.0,0.00016922,2]
[336600196,1724969441779,-151.0,0.00016922,2]
[336600198,1724969441789,-155.325137,0.00016922,2]
[336600200,1724969441801,-155.325137,0.00016922,2]
[336600202,1724969441810,-151.0,0.00016922,2]
[336600204,1724969441819,-151.0,0.00016922,2]
[336600206,1724969441828,-151.0,0.00016922,2]
[336600208,1724969441837,-151.0,0.00016922,2]
[336600210,1724969441846,-233.260893,0.00016922,2]
[336600211,1724969441855,-233.260893,0.00016922,2]
[336600213,1724969441864,-151.0,0.00016922,2]
[336600215,1724969441873,-151.0,0.00016922,2]
[336600217,1724969441883,-151.0,0.00016922,2]
[336600219,1724969441892,-458.726026,0.00016922,2]
[336600221,1724969441901,-458.726026,0.00016922,2]
[336600223,1724969441911,-151.0,0.00016922,2]
[336600224,1724969441920,-447.0,0.00017343,2]
[336600226,1724969441929,-623.0,0.00017343,2]
[336600228,1724969441939,-151.0,0.00017343,2]
[336600229,1724969441948,-151.0,0.00017343,2]
[336600230,1724969441958,-332.629475,0.00017343,2]
[336600231,1724969441968,-154.330457,0.00017343,2]
[336600232,1724969441977,-154.330457,0.00017343,2]
[336600233,1724969441987,-151.0,0.00017343,2]
[336600234,1724969441996,-233.292681,0.00017343,2]
[336600235,1724969442005,-233.292681,0.00017343,2]
[336600236,1724969442015,-207.93846391,0.000175,4]
[336600237,1724969442024,-176.20591623,0.00017544,2]
[336600238,1724969442034,-186.16,0.00017592,2]
[336600239,1724969442043,-1613.0,0.00017619,2]
[336600240,1724969442055,-370.69,0.00017982,2]
[336600241,1724969442064,-1500.0,0.00018,18]
[336600242,1724969442074,-400.0,0.00018,2]
[336600243,1724969442083,-461.47696,0.0001839,2]
[336600244,1724969442092,-596.26906297,0.000184,14]
[336600245,1724969442105,-30.33659315,0.000184,14]
[336600246,1724969442114,-231.347096,0.00018639,2]
[336600247,1724969442123,-151.0,0.00018639,2]
[336600248,1724969442133,-151.0,0.00018639,2]
[336600249,1724969442142,-151.0,0.00018639,2]
[336600251,1724969442151,-285.821735,0.00018639,2]
[336600252,1724969442160,-285.821735,0.00018639,2]
[336600254,1724969442169,-151.0,0.00018639,2]
[336600256,1724969442178,-151.0,0.00018639,2]
[336600258,1724969442187,-151.0,0.00018639,2]
[336600260,1724969442196,-151.0,0.00018639,2]
[336600262,1724969442205,-334.24947,0.00018639,2]
[336600264,1724969442215,-15.21092062,0.00018639,2]
[336600266,1724969442227,-319.03854938,0.00018639,2]
[336600268,1724969442236,-205.201836,0.00018639,2]
[336600270,1724969442245,-205.201836,0.00018639,2]
[336600272,1724969442254,-508.3,0.000187,7]
[336600273,1724969442263,-151.0,0.00019178,2]
[336600275,1724969442273,-151.0,0.00019178,2]
[336600277,1724969442282,-237.511768,0.00019178,2]
[336600279,1724969442293,-156.41721627,0.00019361,2]
[336600281,1724969442303,-2258.0,0.00019361,2]
[336600283,1724969442314,-977.0,0.000195,3]
[336600285,1724969442323,-9.68103064,0.00019568,2]
[336600287,1724969442335,-141.31896936,0.00019568,2]
[336600289,1724969442344,-151.0,0.00019568,2]
[336600291,1724969442353,-853.66250051,0.00019568,2]
[336600293,1724969442365,-405.33749949,0.00019568,2]
[336600295,1724969442374,-229.91250051,0.00019568,2]
[336600297,1724969442387,-93.80949949,0.00019568,2]
[336600299,1724969442396,-208.0,0.00019568,2]
[336600301,1724969442406,-1914.877,0.00019568,2]
[336600303,1724969442415,-240.562,0.00019572,2]
[336600305,1724969442424,-2092.29650057,0.000199,3]
[336600307,1724969442443,-1070.1255496,0.000199,3]
[336600310,1724969442454,-779.57794983,0.000199,3]
[336600311,1724969442463,-151.0,0.000199,2]
[336600313,1724969442472,-151.0,0.000199,2]
[336600315,1724969442481,-233.260893,0.000199,2]
[336600317,1724969442491,-233.260893,0.000199,2]
[336600319,1724969442500,-155.325137,0.00019991,2]
[336600321,1724969442509,-155.325137,0.00019991,2]
[336600323,1724969442518,-151.0,0.00019991,2]
[336600325,1724969442528,-151.0,0.00019991,2]
[336600327,1724969442538,-1373.53855736,0.0002,5]
[336600330,1724969442550,-162.67323732,0.0002,30]
[336600332,1724969442561,-193.0,0.0002,2]
[336600334,1724969442570,-151.0,0.0002,2]
[336600336,1724969442579,-151.0,0.0002,2]
[336600338,1724969442588,-150.0,0.0002,2]
[336600340,1724969442597,-450.0,0.0002,2]
[336600342,1724969442606,-151.0,0.0002,2]
[336600344,1724969442616,-267.003247,0.0002,2]
[336600346,1724969442625,-267.003247,0.0002,2]
[336600348,1724969442634,-151.0,0.0002,2]
[336600349,1724969442643,-202.976377,0.0002,2]
[336600352,1724969442653,-151.0,0.0002,2]
[336600354,1724969442663,-202.976377,0.0002,2]
[336600355,1724969442672,-151.0,0.0002,2]
[336600357,1724969442681,-266.224997,0.0002,2]
[336600359,1724969442692,-266.224997,0.0002,2]
[336600361,1724969442701,-204.488722,0.0002,2]
[336600363,1724969442711,-204.488722,0.0002,2]
[336600365,1724969442720,-151.0,0.0002,2]
[336600367,1724969442730,-193.543222,0.0002,2]
[336600369,1724969442739,-193.543222,0.0002,2]
[336600371,1724969442749,-5569.956154,0.0002,2]
[336600373,1724969442759,-5569.956154,0.0002,2]
[336600375,1724969442769,-237.069901,0.0002,2]
[336600377,1724969442778,-201.696811,0.0002,2]
[336600379,1724969442787,-237.069901,0.0002,2]
[336600381,1724969442797,-201.696811,0.0002,2]
[336600383,1724969442807,-1202.896051,0.0002,2]
[336600385,1724969442816,-1202.896051,0.0002,2]
[336600387,1724969442825,-197.412008,0.0002,2]
[336600389,1724969442835,-197.412008,0.0002,2]
[336600391,1724969442844,-151.0,0.0002,2]
[336600393,1724969442853,-151.0,0.0002,2]
[336600395,1724969442862,-151.0,0.0002,2]
[336600397,1724969442872,-200.392968,0.0002,2]
[336600399,1724969442881,-314.230487,0.0002,2]
[336600401,1724969442891,-151.0,0.0002,2]
[336600403,1724969442901,-314.230487,0.0002,2]
[336600405,1724969442910,-1000.0,0.0002,2]
[336600407,1724969442919,-151.0,0.0002,2]
[336600409,1724969442929,-210.303605,0.0002,2]
[336600411,1724969442938,-1000.0,0.00020037,2]
[336600413,1724969442947,-151.49304,0.00020187,2]
[336600415,1724969442957,-151.0,0.00020187,2]
[336600417,1724969442966,-151.0,0.00020187,2]
[336600419,1724969442976,-151.0,0.00020187,2]
[336600421,1724969442985,-458.726026,0.00020187,2]
[336600423,1724969442994,-458.726026,0.00020187,2]
[336600425,1724969443003,-151.0,0.00020187,2]
[336600427,1724969443013,-370.69,0.00020246,2]
[336600429,1724969443022,-15364.33787398,0.00020888,10]
[336600431,1724969443031,-151.0,0.00020888,2]
[336600433,1724969443040,-151.0,0.00020888,2]
[336600435,1724969443052,-151.0,0.00020888,2]
[336600437,1724969443062,-285.821735,0.00020888,2]
[336600440,1724969443071,-285.821735,0.00020888,2]
[336600443,1724969443080,-151.0,0.00020888,2]
[336600446,1724969443090,-151.0,0.00020888,2]
[336600448,1724969443099,-151.0,0.00020888,2]
[336600450,1724969443109,-332.629475,0.00020888,2]
[336600452,1724969443118,-332.629475,0.00020888,2]
[336600453,1724969443128,-154.330457,0.00020888,2]
[336600455,1724969443137,-154.330457,0.00020888,2]
[336600457,1724969443146,-151.0,0.00020888,2]
[336600459,1724969443156,-233.292681,0.00020888,2]
[336600461,1724969443165,-233.292681,0.00020888,2]
[336600463,1724969443174,-461.47697,0.0002089,2]
[336600465,1724969443183,-700.0,0.000209,7]
[336600467,1724969443193,-13565.09643036,0.00021,4]
[336600470,1724969443202,-20129.19380888,0.00021,4]
[336600473,1724969443212,-20129.63047787,0.00021,4]
[336600476,1724969443221,-20129.09865779,0.00021,4]
[336600480,1724969443230,-151.0,0.00021,2]
[336600483,1724969443240,-151.0,0.00021,2]
[336600486,1724969443250,-151.0,0.00021,2]
[336600489,1724969443259,-151.0,0.00021,2]
[336600492,1724969443268,-151.0,0.00021,2]
[336600495,1724969443277,-285.821735,0.00021,2]
[336600498,1724969443287,-285.821735,0.00021,2]
[336600501,1724969443296,-151.0,0.00021,2]
[336600504,1724969443307,-155.325137,0.00021,2]
[336600507,1724969443319,-155.325137,0.00021,2]
[336600510,1724969443328,-151.0,0.00021,2]
[336600513,1724969443338,-151.0,0.00021,2]
[336600515,1724969443347,-151.0,0.00021,2]
[336600517,1724969443356,-151.0,0.00021,2]
[336600519,1724969443365,-151.0,0.00021,2]
[336600521,1724969443374,-151.0,0.00021,2]
[336600522,1724969443383,-332.629475,0.00021,2]
[336600524,1724969443392,-332.629475,0.00021,2]
[336600526,1724969443401,-154.330457,0.00021,2]
[336600528,1724969443410,-154.330457,0.00021,2]
[336600530,1724969443420,-151.0,0.00021,2]
[336600532,1724969443429,-151.0,0.00021,2]
[336600534,1724969443439,-151.0,0.00021,2]
[336600536,1724969443449,-233.292681,0.00021,2]
[336600538,1724969443458,-233.292681,0.00021,2]
[336600540,1724969443467,-151.0,0.00021,2]
[336600542,1724969443477,-151.0,0.00021,2]
[336600544,1724969443486,-151.0,0.00021,2]
[336600546,1724969443496,-233.260893,0.00021,2]
[336600548,1724969443505,-233.260893,0.00021,2]
[336600550,1724969443514,-334.24947,0.00021,2]
[336600552,1724969443523,-334.24947,0.00021,2]
[336600554,1724969443534,-205.201836,0.00021,2]
[336600556,1724969443543,-205.201836,0.00021,2]
[336600557,1724969443553,-151.0,0.00021,2]
[336600559,1724969443563,-151.0,0.00021,2]
[336600561,1724969443572,-151.0,0.00021,2]
[336600563,1724969443581,-267.003247,0.00021,2]
[336600565,1724969443591,-267.003247,0.00021,2]
[336600567,1724969443599,-997.16,0.00021,2]
[336600569,1724969443608,-197.041104,0.00021,2]
[336600571,1724969443617,-151.0,0.00021,2]
[336600573,1724969443626,-151.0,0.00021,2]
[336600575,1724969443636,-287.042154,0.00021,2]
[336600577,1724969443645,-458.726026,0.00021,2]
[336600579,1724969443654,-458.726026,0.00021,2]
[336600580,1724969443663,-210.250405,0.00021,2]
[336600582,1724969443672,-151.0,0.00021,2]
[336600584,1724969443682,-202.976377,0.00021,2]
[336600586,1724969443693,-151.0,0.00021,2]
[336600588,1724969443703,-202.976377,0.00021,2]
[336600590,1724969443712,-151.0,0.00021,2]
[336600592,1724969443721,-266.224997,0.00021,2]
[336600594,1724969443730,-266.224997,0.00021,2]
[336600596,1724969443740,-204.488722,0.00021,2]
[336600598,1724969443749,-204.488722,0.00021,2]
[336600600,1724969443758,-193.543222,0.00021,2]
[336600602,1724969443767,-193.543222,0.00021,2]
[336600604,1724969443776,-5569.956154,0.00021,2]
[336600606,1724969443785,-5569.956154,0.00021,2]
[336600608,1724969443794,-237.069901,0.00021,2]
[336600610,1724969443807,-201.696811,0.00021,2]
[336600612,1724969443822,-237.069901,0.00021,2]
[336600614,1724969443831,-201.696811,0.00021,2]
[336600617,1724969443841,-1202.896051,0.00021,2]
[336600620,1724969443849,-1202.896051,0.00021,2]
[336600622,1724969443859,-197.412008,0.00021,2]
[336600624,1724969443867,-197.412008,0.00021,2]
[336600625,1724969443877,-151.0,0.00021,2]
[336600627,1724969443886,-151.0,0.00021,2]
[336600629,1724969443895,-206.329009,0.00021,2]
[336600631,1724969443905,-314.230487,0.00021,2]
[336600633,1724969443914,-151.0,0.00021,2]
[336600635,1724969443923,-314.230487,0.00021,2]
[336600637,1724969443933,-151.0,0.00021,2]
[336600639,1724969443942,-210.303605,0.00021,2]
[336600641,1724969443951,-176.20591623,0.00021187,2]
[336600642,1724969443961,-3162.0,0.00021276,2]
[336600644,1724969443970,-1395.77,0.00021589,30]
[336600646,1724969443980,-251.756585,0.00021735,2]
[336600648,1724969443990,-296.057085,0.00021735,2]
[336600650,1724969444000,-151.0,0.00021735,2]
[336600652,1724969444010,-151.0,0.00021735,2]
[336600654,1724969444021,-151.0,0.00021735,2]
[336600657,1724969444036,-151.0,0.00021735,2]
[336600659,1724969444047,-151.0,0.00021735,2]
[336600661,1724969444065,-151.0,0.00021735,2]
[336600663,1724969444076,-233.260893,0.00021735,2]
[336600665,1724969444086,-233.260893,0.00021735,2]
[336600667,1724969444097,-334.24947,0.00021735,2]